bitfinex/quotes_SOLUSD_20240915
["timestamp","ask_amount","ask_price","bid_price","bid_amount"]
[1726420960529,23.776884,133.66,133.57,6.1224]
[1726420961253,31.258684,133.66,133.55,15.1289]
[1726420961440,23.776884,133.64,133.55,15.1289]
[1726420962947,23.776884,133.64,133.56,20.0]
[1726420964247,400.6023,133.65,133.56,20.0]
[1726420964428,400.6023,133.65,133.56,50.5722912]
[1726420965248,400.6023,133.65,133.58,30.5722912]
[1726420965425,400.6023,133.65,133.59,20.0]
[1726420965943,400.8518362,133.68,133.59,20.0]
[1726420967253,23.776884,133.67,133.59,20.0]
[1726420968544,23.776884,133.67,133.58,20.0]
[1726420968850,31.257984,133.67,133.55,15.1289]
[1726420969033,23.776884,133.65,133.56,20.0]
[1726420969448,23.776884,133.63,133.55,15.1289]
[1726420970648,23.776884,133.63,133.56,20.0]
[1726420971857,385.6,133.62,133.56,20.0]
[1726420979565,385.6,133.62,133.56,50.5722912]
[1726420980953,385.6,133.62,133.59,20.0]
[1726420983756,6.1765,133.67,133.59,20.0]
[1726420985641,401.5585362,133.68,133.59,20.0]
[1726420985847,401.5585362,133.68,133.6,0.38436929]
[1726420986260,401.5585362,133.68,133.61,20.0]
[1726420986454,401.5585362,133.68,133.62,0.38458734]
[1726420987244,401.5585362,133.68,133.62,1.49652679]
[1726420988272,401.5585362,133.68,133.61,20.0]
[1726420988570,424.00054992,133.68,133.61,20.0]
[1726420989338,412.93671244,133.68,133.61,20.0]
[1726420989545,401.5585362,133.68,133.61,20.0]
[1726420989962,385.8495362,133.68,133.61,20.0]
[1726420993054,393.3302362,133.68,133.61,20.0]
[1726420993461,385.8495362,133.68,133.61,20.0]
[1726420994765,23.776884,133.67,133.61,20.0]
[1726420995558,409.376884,133.67,133.61,20.0]
[1726420999874,385.6,133.67,133.61,39.60812801]
[1726421000483,385.6,133.67,133.63,19.60812801]
[1726421001355,0.2495362,133.68,133.63,19.60812801]
[1726421001772,0.2495362,133.68,133.64,19.60812801]
[1726421002668,0.2495362,133.68,133.63,19.60812801]
[1726421002866,0.2495362,133.68,133.62,19.60812801]
[1726421003282,0.2495362,133.68,133.63,19.60812801]
[1726421006690,0.2495362,133.68,133.62,19.60812801]
[1726421007880,0.2495362,133.68,133.65,19.60812801]
[1726421008079,0.2495362,133.68,133.67,19.60812801]
[1726421012591,0.2495362,133.68,133.67,39.60812801]
[1726421012791,0.2495362,133.68,133.67,45.66102801]
[1726421012984,0.2495362,133.72,133.69,20.0]
[1726421013183,0.2495362,133.72,133.71,19.60812801]
[1726421015492,0.2495362,133.72,133.71,39.60812801]
[1726421015882,0.2495362,133.72,133.71,41.10344257]
[1726421016202,0.2495362,133.72,133.71,39.60812801]
[1726421017899,0.2495362,133.72,133.71,20.0]
[1726421023595,0.2495362,133.72,133.69,20.0]
[1726421024782,0.2495362,133.72,133.7,54.35926397]
[1726421024983,0.2495362,133.72,133.71,20.0]
[1726421031796,0.2495362,133.72,133.69,20.0]
[1726421038011,0.2495362,133.72,133.69,39.58014803]
[1726421042506,0.2495362,133.72,133.68,20.0]
[1726421042704,0.2495362,133.72,133.68,39.58014803]
[1726421043024,0.2495362,133.72,133.69,19.58014803]
[1726421047094,0.2495362,133.72,133.68,20.0]
[1726421047496,0.2495362,133.72,133.68,39.58014803]
[1726421048708,0.2495362,133.72,133.7,19.58014803]
[1726421048909,0.2495362,133.72,133.71,19.58014803]
[1726421049113,0.2495362,133.72,133.71,39.58014803]
[1726421049315,0.2495362,133.76,133.71,39.58014803]
[1726421049624,0.2495362,133.76,133.7,15.3077]
[1726421049625,0.2495362,133.76,133.75,19.58014803]
[1726421049797,0.2495362,133.76,133.72,20.0]
[1726421050123,0.2495362,133.76,133.74,19.58014803]
[1726421050896,0.2495362,133.76,133.73,19.58014803]
[1726421051719,0.2495362,133.76,133.74,19.58014803]
[1726421051897,0.2495362,133.76,133.75,19.58014803]
[1726421054901,0.2495362,133.76,133.74,19.58014803]
[1726421057031,0.2495362,133.76,133.75,39.58014803]
[1726421057525,385.6,133.82,133.75,39.58014803]
[1726421057526,384.0990724,133.82,133.75,39.58014803]
[1726421057706,384.0990724,133.82,133.77,19.58014803]
[1726421059033,384.0990724,133.82,133.76,19.58014803]
[1726421059513,23.75363966,133.83,133.72,6.3049]
[1726421059514,17.71903966,133.83,133.78,19.58014803]
[1726421059821,384.3486086,133.85,133.78,19.58014803]
[1726421059822,384.3486086,133.85,133.79,19.58014803]
[1726421062125,384.3486086,133.85,133.77,56.85543742]
[1726421063418,0.2495362,133.85,133.77,56.85543742]
[1726421064110,406.5536724,133.86,133.77,56.85543742]
[1726421064111,406.3032086,133.86,133.77,56.85543742]
[1726421065811,400.5190724,133.86,133.77,56.85543742]
[1726421066026,400.5190724,133.86,133.8,15.3077]
[1726421066027,384.0990724,133.86,133.8,15.3077]
[1726421066203,384.0990724,133.86,133.81,20.0]
[1726421066404,384.0990724,133.88,133.81,20.0]
[1726421066909,384.0990724,133.88,133.81,50.55053742]
[1726421069014,384.3437943,133.89,133.81,50.55053742]
[1726421069814,384.3437943,133.89,133.87,30.55053742]
[1726421070021,0.2447219,133.89,133.87,30.55053742]
[1726421070334,0.2447219,133.89,133.85,50.55053742]
[1726421072717,0.2447219,133.89,133.85,20.0]
[1726421074829,0.2447219,133.89,133.84,15.2362]
[1726421075042,0.2447219,133.89,133.83,20.0]
[1726421075212,384.3437943,133.89,133.83,20.0]
[1726421075614,391.8125943,133.89,133.83,20.0]
[1726421075830,384.3437943,133.89,133.83,20.0]
[1726421081645,384.3437943,133.89,133.83,50.55053742]
[1726421082544,384.3437943,133.89,133.85,30.55053742]
[1726421086243,384.3437943,133.89,133.87,30.55053742]
[1726421087038,0.2447219,133.89,133.87,30.55053742]
[1726421088032,0.2447219,133.89,133.88,19.52853386]
[1726421089136,0.2447219,133.89,133.83,20.0]
[1726421089339,0.2447219,133.89,133.86,19.52853386]
[1726421089651,0.2447219,133.89,133.87,19.52853386]
[1726421090334,0.2447219,133.89,133.86,19.52853386]
[1726421091235,0.2447219,133.89,133.88,19.52853386]
[1726421092347,0.2447219,133.89,133.83,20.0]
[1726421092654,0.2447219,133.89,133.87,19.52853386]
[1726421093028,0.2447219,133.89,133.88,19.52853386]
[1726421095050,0.2447219,133.89,133.86,20.0]
[1726421095261,0.2447219,133.89,133.85,19.52853386]
[1726421095847,0.2447219,133.89,133.86,19.52853386]
[1726421096363,0.2447219,133.89,133.88,19.52853386]
[1726421097569,15.95146614,133.83,133.82,66.094384]
[1726421097873,0.2447219,133.89,133.83,43.776884]
[1726421098160,0.2447219,133.89,133.87,19.52853386]
[1726421102137,0.2447219,133.89,133.88,19.52853386]
[1726421103147,0.2447219,133.89,133.83,43.776884]
[1726421103339,0.2447219,133.89,133.88,19.52853386]
[1726421103666,0.2447219,133.89,133.88,39.52853386]
[1726421111364,0.2447219,133.89,133.88,20.0]
[1726421111746,0.2447219,133.89,133.87,20.0]
[1726421112365,0.2447219,133.89,133.83,6.1312]
[1726421112566,0.2447219,133.89,133.82,19.52853386]
[1726421112872,0.2447219,133.89,133.83,19.52853386]
[1726421113057,0.2447219,133.89,133.84,19.52853386]
[1726421113457,0.2447219,133.89,133.81,16.478]
[1726421113663,0.2447219,133.89,133.83,19.52853386]
[1726421113864,0.2447219,133.89,133.82,19.52853386]
[1726421113865,24.0216059,133.89,133.82,19.52853386]
[1726421114367,408.1206783,133.89,133.81,16.478]
[1726421114576,23.776884,133.87,133.78,36.00653386]
[1726421114748,15.3789,133.86,133.78,36.00653386]
[1726421114944,15.3789,133.86,133.78,16.478]
[1726421115148,15.3789,133.86,133.8,19.52853386]
[1726421115446,15.3789,133.86,133.81,19.52853386]
[1726421115667,15.3789,133.86,133.8,19.52853386]
[1726421116066,15.3789,133.86,133.81,19.52853386]
[1726421116286,399.7226943,133.89,133.82,19.52853386]
[1726421117869,31.246284,133.88,133.81,20.0]
[1726421118073,23.776884,133.88,133.78,36.00653386]
[1726421118256,23.776884,133.88,133.79,20.0]
[1726421119249,23.776884,133.85,133.75,24.25577981]
[1726421119562,37.8889,133.86,133.75,27.30631367]
[1726421119563,23.776884,133.83,133.75,27.30631367]
[1726421120976,23.776884,133.83,133.75,7.77777981]
[1726421122053,39.155784,133.8,133.75,7.77777981]
[1726421122259,15.3789,133.8,133.75,7.77777981]
[1726421122566,399.4779724,133.8,133.75,7.77777981]
[1726421126586,399.4779724,133.8,133.75,7.88764741]
[1726421127953,384.0990724,133.8,133.76,50.58203827]
[1726421128176,384.0990724,133.8,133.78,30.58203827]
[1726421128474,384.0990724,133.83,133.78,30.58203827]
[1726421128793,384.0990724,133.83,133.76,58.35936401]
[1726421129070,384.0990724,133.83,133.76,50.58203827]
[1726421129964,384.0990724,133.83,133.76,56.94693827]
[1726421130683,384.0990724,133.83,133.76,72.44033827]
[1726421131564,384.0990724,133.83,133.78,20.0]
[1726421133084,384.0990724,133.83,133.77,20.0]
[1726421133816,391.5713724,133.83,133.76,15.4934]
[1726421133961,384.0990724,133.83,133.76,15.4934]
[1726421134279,384.0990724,133.82,133.76,15.4934]
[1726421135184,384.0990724,133.82,133.75,20.1098676]
[1726421135683,384.0990724,133.82,133.75,0.1098676]
[1726421136180,16.5943,133.81,133.75,0.1098676]
[1726421140207,384.0990724,133.8,133.75,0.1098676]
[1726421140715,13.9244,133.82,133.73,0.2473449]
[1726421140716,44.7173,133.79,133.73,0.2473449]
[1726421140891,42.51,133.66,133.57,0.2473449]
[1726421141091,42.51,133.66,133.48,6.3649]
[1726421141092,20.0,133.59,133.48,6.3649]
[1726421141345,20.0,133.59,133.51,0.3808105]
[1726421141346,14.43222149,133.58,133.51,0.3808105]
[1726421141609,20.0,133.59,133.51,0.3808105]
[1726421141775,7.4856,133.59,133.51,0.3808105]
[1726421142591,48.9616,133.63,133.51,0.3808105]
[1726421142804,9.39671351,133.59,133.51,0.3808105]
[1726421142996,31.261584,133.61,133.51,0.3808105]
[1726421143206,7.4851,133.6,133.51,0.3808105]
[1726421143398,23.776884,133.59,133.51,0.3808105]
[1726421144208,23.776884,133.6,133.51,0.3808105]
[1726421144589,33.9353,133.63,133.51,0.3808105]
[1726421144590,31.260784,133.62,133.51,0.3808105]
[1726421145404,23.776884,133.62,133.51,0.3808105]
[1726421146309,31.260784,133.62,133.51,0.3808105]
[1726421147805,7.4845,133.61,133.51,0.3808105]
[1726421149712,23.776884,133.6,133.51,0.3808105]
[1726421150607,23.776884,133.58,133.45,20.3808105]
[1726421150804,23.776884,133.6,133.45,20.3808105]
[1726421151111,46.286884,133.6,133.45,0.3808105]
[1726421151323,23.776884,133.58,133.45,0.3808105]
[1726421152389,7.4876,133.56,133.45,20.3808105]
[1726421152585,31.263484,133.58,133.45,20.3808105]
[1726421152788,7.4867,133.57,133.45,20.3808105]
[1726421153209,23.776884,133.56,133.45,20.3808105]
[1726421154510,7.4878,133.55,133.45,0.3808105]
[1726421154811,7.4878,133.55,133.45,24.1576945]
[1726421155013,385.6,133.54,133.45,24.1576945]
[1726421155312,23.776884,133.53,133.45,0.3808105]
[1726421155614,385.6,133.54,133.45,1.23109817]
[1726421155789,385.6,133.54,133.45,0.3808105]
[1726421156988,385.6,133.54,133.45,20.3808105]
[1726421158006,374.731265,133.54,133.45,20.3808105]
[1726421159503,382.219665,133.54,133.45,20.3808105]
[1726421161010,374.731265,133.53,133.45,20.3808105]
[1726421161187,382.220265,133.53,133.45,20.3808105]
[1726421161503,23.776884,133.52,133.45,0.3808105]
[1726421161691,374.731265,133.51,133.45,0.3808105]
[1726421162412,382.221465,133.51,133.45,0.3808105]
[1726421163413,374.731265,133.51,133.45,0.3808105]
[1726421164208,374.731265,133.51,133.45,20.3808105]
[1726421164416,374.731265,133.51,133.47,43.776884]
[1726421164629,358.064665,133.51,133.5,6.4147]
[1726421164915,358.064665,133.51,133.5,26.4147]
[1726421166817,365.550465,133.59,133.5,26.4147]
[1726421166997,358.064665,133.58,133.5,26.4147]
[1726421168799,358.064665,133.6,133.5,26.4147]
[1726421169110,358.064665,133.6,133.52,16.6229]
[1726421171495,31.262684,133.59,133.52,16.6229]
[1726421171723,7.4867,133.57,133.52,16.6229]
[1726421172418,7.4873,133.56,133.5,6.4147]
[1726421172626,46.296884,133.59,133.5,6.4147]
[1726421172810,7.4879,133.55,133.5,6.4147]
[1726421173524,31.265284,133.54,133.5,6.4147]
[1726421173734,7.4895,133.52,133.48,16.6229]
[1726421173898,7.4895,133.52,133.46,6.2772]
[1726421175221,23.776884,133.52,133.46,6.2772]
[1726421177512,358.064665,133.53,133.46,6.2772]
[1726421178622,365.553065,133.54,133.46,6.2772]
[1726421179004,358.064665,133.54,133.46,6.2772]
[1726421179806,358.064665,133.54,133.47,21.49746443]
[1726421180133,358.064665,133.54,133.48,23.776884]
[1726421180299,358.064665,133.54,133.49,20.0]
[1726421184001,365.549765,133.6,133.5,46.676984]
[1726421185513,7.4861,133.58,133.51,3.81168392]
[1726421185715,7.4861,133.58,133.5,26.71211773]
[1726421186404,7.4861,133.58,133.51,3.81201773]
[1726421186622,7.4868,133.57,133.52,3.81201773]
[1726421186814,7.4868,133.57,133.5,22.9001]
[1726421187018,7.4868,133.57,133.51,3.81258864]
[1726421187232,7.4868,133.57,133.52,3.81258864]
[1726421187404,7.4868,133.57,133.5,22.9001]
[1726421187610,7.4868,133.57,133.51,3.81263466]
[1726421187919,7.4868,133.57,133.5,22.9001]
[1726421188124,365.550865,133.58,133.51,3.75975202]
[1726421188832,365.550865,133.58,133.52,3.75964154]
[1726421189333,358.064665,133.58,133.52,3.75964154]
[1726421193526,365.548665,133.62,133.52,3.75964154]
[1726421196209,358.064665,133.62,133.55,16.3519]
[1726421196530,358.064665,133.63,133.55,16.3519]
[1726421197321,7.4839,133.62,133.55,16.3519]
[1726421197729,23.776884,133.62,133.55,16.3519]
[1726421197931,7.485,133.6,133.55,16.3519]
[1726421198246,7.4856,133.59,133.55,16.3519]
[1726421198438,6.9856,133.59,133.55,16.3519]
[1726421198623,7.4851,133.6,133.55,16.3519]
[1726421199244,358.064665,133.59,133.55,16.3519]
[1726421202932,358.064665,133.59,133.54,6.6499]
[1726421203245,22.52,133.6,133.52,16.4376]
[1726421203554,46.296884,133.59,133.52,16.4376]
[1726421203745,7.4868,133.57,133.52,16.4376]
[1726421206449,46.296884,133.59,133.52,16.4376]
[1726421206450,7.4862,133.58,133.52,16.4376]
[1726421207932,7.4867,133.57,133.52,16.4376]
[1726421208959,365.550865,133.58,133.52,16.4376]
[1726421210160,7.4862,133.58,133.52,16.4376]
[1726421210346,7.4872,133.56,133.52,16.4376]
[1726421211940,358.064665,133.6,133.52,16.4376]
[1726421212143,358.064665,133.6,133.53,25.10492866]
[1726421212567,358.064665,133.6,133.54,23.776884]
[1726421212758,358.064665,133.6,133.55,6.2472]
[1726421214036,358.064665,133.59,133.55,6.2472]
[1726421216260,358.064665,133.59,133.55,29.85446112]
[1726421216567,358.064665,133.59,133.56,16.497]
[1726421216732,358.064665,133.58,133.56,16.497]
[1726421218062,358.064665,133.58,133.57,23.60726112]
[1726421218435,0.2466286,133.63,133.57,23.60726112]
[1726421219644,385.6,133.62,133.57,23.60726112]
[1726421220044,385.6,133.62,133.57,43.57457903]
[1726421220367,385.6,133.62,133.56,16.497]
[1726421222842,393.0839,133.62,133.56,16.497]
[1726421223046,385.6,133.61,133.56,16.497]
[1726421228644,393.0845,133.61,133.56,16.497]
[1726421228839,7.4845,133.61,133.56,16.497]
[1726421229339,7.4845,133.61,133.55,6.2472]
[1726421229340,23.776884,133.61,133.55,6.2472]
[1726421229646,7.4857,133.59,133.55,6.2472]
[1726421229849,393.0866,133.58,133.53,15.2243]
[1726421230040,385.6,133.58,133.53,15.2243]
[1726421230274,7.4867,133.57,133.53,15.2243]
[1726421230648,393.0861,133.58,133.53,15.2243]
[1726421230851,385.6,133.58,133.53,15.2243]
[1726421232054,393.0863,133.58,133.53,15.2243]
[1726421232576,7.4867,133.57,133.53,15.2243]
[1726421232870,393.0862,133.58,133.53,15.2243]
[1726421234771,385.6,133.57,133.53,15.2243]
[1726421234964,393.0867,133.57,133.53,15.2243]
[1726421235672,23.776884,133.56,133.5,0.0936605]
[1726421235853,385.6,133.55,133.5,0.0936605]
[1726421236752,393.0878,133.55,133.5,0.0936605]
[1726421237177,23.776884,133.53,133.5,0.0936605]
[1726421237377,385.6,133.54,133.5,0.0936605]
[1726421237858,385.6,133.54,133.48,5.6356605]
[1726421240449,393.0884,133.54,133.48,5.6356605]
[1726421240649,393.0891,133.53,133.48,5.6356605]
[1726421244265,7.4905,133.51,133.44,6.3822891]
[1726421244462,385.6,133.5,133.44,6.3822891]
[1726421244656,385.6,133.5,133.44,29.95686813]
[1726421249559,7.489,133.53,133.44,29.95686813]
[1726421253780,385.6,133.54,133.46,23.57457903]
[1726421254587,1.30163753,133.55,133.47,23.776884]
[1726421254765,7.4873,133.56,133.47,23.776884]
[1726421257377,7.4873,133.56,133.48,15.9459]
[1726421257783,7.488,133.55,133.48,15.9459]
[1726421258667,7.488,133.55,133.46,15.9459]
[1726421258668,7.4895,133.52,133.46,15.9459]
[1726421260184,7.4906,133.5,133.44,6.3822891]
[1726421263776,7.4906,133.5,133.44,6.3379647]
[1726421264298,393.0906,133.5,133.44,6.3379647]
[1726421268489,385.6,133.5,133.44,6.3379647]
[1726421269974,385.6,133.5,133.44,21.45908431]
[1726421270175,7.4901,133.51,133.44,21.45908431]
[1726421272200,385.6,133.52,133.46,15.12111961]
[1726421272572,385.6,133.52,133.44,6.3379647]
[1726421273991,393.09,133.52,133.45,15.12111961]
[1726421274190,385.6,133.52,133.46,15.12111961]
[1726421274620,393.0896,133.52,133.45,15.12111961]
[1726421277798,393.0896,133.52,133.46,3.76081025]
[1726421279611,393.0896,133.52,133.45,15.41708431]
[1726421279921,393.0896,133.52,133.46,3.76082793]
[1726421280214,7.4912,133.49,133.47,3.76082793]
[1726421280416,7.4901,133.51,133.47,3.76082793]
[1726421281314,393.0896,133.52,133.46,3.76082793]
[1726421281530,393.0896,133.52,133.47,3.76071242]
[1726421281690,393.0896,133.52,133.45,0.2959647]
[1726421282022,393.0901,133.51,133.45,0.2959647]
[1726421283002,385.6,133.51,133.45,0.2959647]
[1726421283211,7.4906,133.5,133.45,0.2959647]
[1726421283491,7.4906,133.5,133.46,3.76098248]
[1726421283897,393.0901,133.51,133.46,3.76098248]
[1726421285318,393.0901,133.51,133.47,3.76108301]
[1726421285814,393.0901,133.51,133.46,3.76098248]
[1726421286024,393.0901,133.51,133.47,3.76098399]
[1726421286323,393.0901,133.51,133.47,3.76108217]
[1726421286821,385.6,133.51,133.45,0.2959647]
[1726421287222,393.0901,133.51,133.45,0.2959647]
[1726421287922,7.4901,133.51,133.45,0.2959647]
[1726421288705,385.6,133.52,133.45,0.2959647]
[1726421288706,393.0896,133.52,133.45,0.2959647]
[1726421289524,7.4901,133.51,133.45,0.2959647]
[1726421289907,393.0895,133.52,133.45,0.2959647]
[1726421291119,1.3015121,133.54,133.48,15.12111961]
[1726421291321,1.3015121,133.54,133.5,15.12111961]
[1726421291525,15.5114,133.57,133.51,15.12111961]
[1726421294428,15.5114,133.57,133.51,18.88073913]
[1726421294615,15.5114,133.57,133.51,15.12111961]
[1726421294797,15.5114,133.57,133.51,18.88073913]
[1726421295000,15.5114,133.57,133.51,15.12111961]
[1726421295200,393.0862,133.58,133.51,15.12111961]
[1726421295409,393.0862,133.58,133.51,16.6189051]
[1726421296098,393.0862,133.58,133.52,15.12111961]
[1726421296318,385.6,133.58,133.54,15.12111961]
[1726421296803,0.1954435,133.59,133.54,15.12111961]
[1726421299608,0.1954435,133.59,133.52,6.1904]
[1726421299804,0.1954435,133.59,133.53,15.12111961]
[1726421302221,0.1954435,133.59,133.54,15.12111961]
[1726421302727,0.1954435,133.59,133.52,6.1904]
[1726421303433,7.4866,133.58,133.52,6.1904]
[1726421303818,7.6810435,133.59,133.52,6.1904]
[1726421304220,7.6810435,133.59,133.52,21.31151961]
[1726421304827,7.6810435,133.59,133.53,15.12111961]
[1726421305027,0.1954435,133.59,133.54,15.12111961]
[1726421308226,0.1954435,133.59,133.55,15.12111961]
[1726421309534,0.1954435,133.59,133.54,15.12111961]
[1726421310031,0.1954435,133.59,133.55,16.61857584]
[1726421310434,0.1954435,133.59,133.56,15.12111961]
[1726421311229,0.1954435,133.59,133.58,15.12111961]
[1726421314742,0.1954435,133.59,133.57,6.359]
[1726421314918,0.1954435,133.59,133.58,15.12111961]
[1726421316332,0.1954435,133.59,133.58,38.89800361]
[1726421318841,0.1954435,133.59,133.58,58.89800361]
[1726421319045,0.0700435,133.59,133.58,58.89800361]
[1726421319245,385.6,133.62,133.59,43.776884]
[1726421319427,385.6,133.62,133.61,15.12111961]
[1726421319632,385.6,133.62,133.61,38.89800361]
[1726421320344,0.2457041,133.63,133.61,38.89800361]
[1726421320546,0.2457041,133.63,133.62,15.12111961]
[1726421321637,0.2457041,133.63,133.62,80.81280361]
[1726421321848,0.2457041,133.63,133.62,65.691684]
[1726421322048,0.2457041,133.63,133.62,80.81280361]
[1726421323421,385.6,133.66,133.63,43.776884]
[1726421323656,385.6,133.66,133.65,15.12111961]
[1726421323831,0.2457041,133.67,133.65,15.12111961]
[1726421324030,0.2457041,133.67,133.66,15.12111961]
[1726421325237,0.2457041,133.67,133.63,43.776884]
[1726421325443,0.2457041,133.67,133.64,15.12111961]
[1726421325646,0.2457041,133.67,133.63,35.12111961]
[1726421325841,0.2457041,133.67,133.62,6.359]
[1726421327559,0.2457041,133.67,133.6,20.0]
[1726421328534,7.7269041,133.67,133.6,35.12111961]
[1726421328733,0.2457041,133.67,133.6,35.12111961]
[1726421330039,0.2457041,133.67,133.61,15.12111961]
[1726421334059,0.2457041,133.67,133.6,35.12111961]
[1726421335732,401.1421041,133.67,133.6,20.0]
[1726421335933,7.4824,133.65,133.59,20.0]
[1726421336135,7.4824,133.65,133.58,6.359]
[1726421336361,385.6,133.66,133.56,16.0843]
[1726421336564,385.6,133.65,133.56,16.0843]
[1726421336771,7.4833,133.63,133.56,16.0843]
[1726421337942,7.4833,133.63,133.55,6.1846]
[1726421338569,7.4833,133.63,133.56,20.0]
[1726421340553,7.4833,133.63,133.56,35.12111961]
[1726421342256,393.0829,133.64,133.56,35.12111961]
[1726421343343,7.4833,133.63,133.56,35.12111961]
[1726421343748,393.0828,133.64,133.57,15.12111961]
[1726421344556,385.6,133.64,133.58,15.12111961]
[1726421345760,385.6,133.64,133.6,15.12111961]
[1726421347043,408.6233041,133.67,133.61,15.12111961]
[1726421347242,401.1421041,133.67,133.62,15.12111961]
[1726421347444,15.5421041,133.67,133.63,15.12111961]
[1726421347671,15.5421041,133.67,133.62,15.12111961]
[1726421350369,15.5421041,133.67,133.63,15.12111961]
[1726421350370,0.2457041,133.67,133.63,15.12111961]
[1726421350658,0.2457041,133.67,133.65,15.12111961]
[1726421350865,0.2457041,133.67,133.64,15.12111961]
[1726421351869,0.2457041,133.67,133.63,15.12111961]
[1726421354269,0.2457041,133.67,133.62,15.12111961]
[1726421357369,0.2457041,133.67,133.63,15.12111961]
[1726421357574,0.2457041,133.67,133.64,15.12111961]
[1726421360369,7.4833,133.64,133.55,6.2008]
[1726421360554,7.4833,133.63,133.55,6.2008]
[1726421361152,7.4833,133.63,133.56,3.75683767]
[1726421361354,393.0828,133.64,133.56,3.75683767]
[1726421361955,393.0828,133.64,133.56,23.75683767]
[1726421362477,7.4834,133.63,133.56,23.75683767]
[1726421363375,385.6,133.64,133.57,15.12111961]
[1726421363554,385.6,133.64,133.57,18.87795728]
[1726421364062,385.6,133.64,133.57,3.75683767]
[1726421364671,399.1338,133.65,133.57,3.75683767]
[1726421369380,391.6515,133.65,133.57,3.75683767]
[1726421369588,391.6515,133.65,133.57,23.75683767]
[1726421369758,391.6515,133.65,133.58,3.75683767]
[1726421369955,391.6515,133.65,133.56,23.75683767]
[1726421370156,391.6515,133.65,133.57,27.53372167]
[1726421370369,391.6515,133.65,133.58,3.75683767]
[1726421370584,6.0515,133.65,133.58,3.75683767]
[1726421370878,408.6828,133.66,133.58,3.75683767]
[1726421371075,401.201,133.66,133.58,3.75683767]
[1726421371254,401.201,133.66,133.58,23.75683767]
[1726421372359,401.201,133.66,133.58,20.0]
[1726421373159,401.201,133.66,133.59,3.75653622]
[1726421373361,401.201,133.66,133.59,23.776884]
[1726421373560,385.6,133.66,133.59,27.53342022]
[1726421373756,385.6,133.66,133.6,26.3977]
[1726421374279,0.2457041,133.67,133.6,30.15423622]
[1726421374492,0.2457041,133.67,133.6,26.3977]
[1726421375082,0.2457041,133.67,133.61,3.7559164]
[1726421375266,0.2457041,133.67,133.61,27.33537619]
[1726421375472,0.2457041,133.67,133.61,23.57945979]
[1726421375976,0.2457041,133.67,133.6,26.3977]
[1726421379669,0.2457041,133.67,133.61,23.776884]
[1726421382770,0.2457041,133.67,133.62,16.5207]
[1726421389021,0.2457041,133.67,133.62,31.60190218]
[1726421390993,0.2457041,133.67,133.63,15.08120218]
[1726421392174,0.2457041,133.67,133.62,31.60190218]
[1726421392500,0.2457041,133.67,133.62,16.5207]
[1726421393175,7.7269041,133.67,133.62,16.5207]
[1726421393378,0.2457041,133.67,133.62,16.5207]
[1726421394784,0.2457041,133.67,133.62,31.60190218]
[1726421398195,0.2457041,133.67,133.62,16.5207]
[1726421399699,7.7269041,133.67,133.62,16.5207]
[1726421400405,0.2457041,133.67,133.6,6.3977]
[1726421400901,7.4827,133.64,133.6,6.3977]
[1726421401290,7.4834,133.63,133.58,16.5199]
[1726421401605,385.6,133.66,133.56,6.0728]
[1726421401606,7.4848,133.61,133.56,6.0728]
[1726421402281,7.4839,133.62,133.56,6.0728]
[1726421402901,7.4846,133.61,133.56,6.0728]
[1726421403284,23.776884,133.62,133.56,6.0728]
[1726421403602,23.776884,133.62,133.55,16.5199]
[1726421403603,7.485,133.6,133.55,16.5199]
[1726421404020,7.485,133.6,133.53,0.2457041]
[1726421404709,7.4857,133.59,133.53,0.2457041]
[1726421405189,23.776884,133.62,133.53,0.2457041]
[1726421405190,7.4867,133.57,133.53,0.2457041]
[1726421405385,7.4878,133.55,133.53,0.2457041]
[1726421405605,393.0873,133.56,133.53,0.2457041]
[1726421405994,385.6,133.56,133.53,0.2457041]
[1726421408810,385.6,133.56,133.54,6.009]
[1726421409109,393.0844,133.61,133.54,37.69600218]
[1726421409300,385.6,133.6,133.54,37.69600218]
[1726421410194,393.0853,133.6,133.54,22.6148]
[1726421410513,395.43750492,133.6,133.53,0.2457041]
[1726421411211,7.4862,133.58,133.53,0.2457041]